{"text_format":"1","workbook":"xlsx","n_sheets":1,"sheets":["OPERAÇÕES"],"not_rendered":{"charts":0,"images":0,"macros":0,"external_links":0,"defined_names":0,"comments":0,"pivot_tables":0},"unopened":[],"bounds":{"document_bytes":16777216,"sheet_cells":100000,"rows_first":2000,"rows_last":500,"rows_between":2000,"halvings":0,"cell_chars":16384,"cell_head_chars":4096},"cells_cut":0,"cells_raw":0,"read":"whole","date_system":"1900"}

{"sheet":"OPERAÇÕES","index":0,"n_rows":26,"n_cols":14,"rows_kept":26,"cut":false,"hidden":false,"merged":[]}
[]
[]
[]
[]
[]
[]
[]
[]
[null,null,null,null,null,null,null,null,null,null,null,"Matricial"]
[null,"Registro","Data","Coluna1","Corretora","Coluna2","Ativo","Posição (C / V)","Qtde","Vlr Unit","Vlr Operação","Qtde Posição Aberta","Resultado desejado","Preço Médio"]
[null,16,"2021-03-26",null,"Genial Investimentos",null,"GOAU4","Compra",50,12.7,{"$f":"TB_Operacoes[[#This Row],[Qtde]]*TB_Operacoes[[#This Row],[Vlr Unit]]","v":635},{"$f":"IF(AND(SUM(SUMIFS(TB_Operacoes[Qtde],TB_Operacoes[Ativo],TB_Operacoes[[#This Row],[Ativo]],TB_Operacoes[Posição (C / V)],\"Compra\",TB_Operacoes[Corretora],TB_Operacoes[[#This Row],[Corretora]])-SUMIFS(TB_Operacoes[Qtde],TB_Operacoes[Ativo],TB_Operacoes[[#This Row],[Ativo]],TB_Operacoes[Posição (C / V)],\"Venda\",TB_Operacoes[Corretora],TB_Operacoes[[#This Row],[Corretora]]))<>0,MAX(TB_Operacoes[Registro]*(TB_Operacoes[Corretora]=TB_Operacoes[[#This Row],[Corretora]])*(TB_Operacoes[Ativo]=TB_Operacoes[[#This Row],[Ativo]]))),SUM(SUMIFS(TB_Operacoes[Qtde],TB_Operacoes[Ativo],TB_Operacoes[[#This Row],[Ativo]],TB_Operacoes[Posição (C / V)],\"Compra\",TB_Operacoes[Corretora],TB_Operacoes[[#This Row],[Corretora]])-SUMIFS(TB_Operacoes[Qtde],TB_Operacoes[Ativo],TB_Operacoes[[#This Row],[Ativo]],TB_Operacoes[Posição (C / V)],\"Venda\",TB_Operacoes[Corretora],TB_Operacoes[[#This Row],[Corretora]])),\"-\")","v":-50},-50,{"$f":"IF(TB_Operacoes[[#This Row],[Resultado desejado]]<>\"-\",\"Preço Médio \" & TB_Operacoes[[#This Row],[Ativo]],0)","v":"Preço Médio GOAU4"}]
[null,15,"2021-03-26",null,"Genial Investimentos",null,"SAPR4","Compra",500,4.46,{"$f":"TB_Operacoes[[#This Row],[Qtde]]*TB_Operacoes[[#This Row],[Vlr Unit]]","v":2230},{"$f":"IF(AND(SUM(SUMIFS(TB_Operacoes[Qtde],TB_Operacoes[Ativo],TB_Operacoes[[#This Row],[Ativo]],TB_Operacoes[Posição (C / V)],\"Compra\",TB_Operacoes[Corretora],TB_Operacoes[[#This Row],[Corretora]])-SUMIFS(TB_Operacoes[Qtde],TB_Operacoes[Ativo],TB_Operacoes[[#This Row],[Ativo]],TB_Operacoes[Posição (C / V)],\"Venda\",TB_Operacoes[Corretora],TB_Operacoes[[#This Row],[Corretora]]))<>0,MAX(TB_Operacoes[Registro]*(TB_Operacoes[Corretora]=TB_Operacoes[[#This Row],[Corretora]])*(TB_Operacoes[Ativo]=TB_Operacoes[[#This Row],[Ativo]]))),SUM(SUMIFS(TB_Operacoes[Qtde],TB_Operacoes[Ativo],TB_Operacoes[[#This Row],[Ativo]],TB_Operacoes[Posição (C / V)],\"Compra\",TB_Operacoes[Corretora],TB_Operacoes[[#This Row],[Corretora]])-SUMIFS(TB_Operacoes[Qtde],TB_Operacoes[Ativo],TB_Operacoes[[#This Row],[Ativo]],TB_Operacoes[Posição (C / V)],\"Venda\",TB_Operacoes[Corretora],TB_Operacoes[[#This Row],[Corretora]])),\"-\")","v":500},500,{"$f":"IF(TB_Operacoes[[#This Row],[Resultado desejado]]<>\"-\",\"Preço Médio \" & TB_Operacoes[[#This Row],[Ativo]],0)","v":"Preço Médio SAPR4"}]
[null,14,"2021-03-26",null,"Genial Investimentos",null,"GOAU4","Compra",100,12.7,{"$f":"TB_Operacoes[[#This Row],[Qtde]]*TB_Operacoes[[#This Row],[Vlr Unit]]","v":1270},{"$f":"IF(AND(SUM(SUMIFS(TB_Operacoes[Qtde],TB_Operacoes[Ativo],TB_Operacoes[[#This Row],[Ativo]],TB_Operacoes[Posição (C / V)],\"Compra\",TB_Operacoes[Corretora],TB_Operacoes[[#This Row],[Corretora]])-SUMIFS(TB_Operacoes[Qtde],TB_Operacoes[Ativo],TB_Operacoes[[#This Row],[Ativo]],TB_Operacoes[Posição (C / V)],\"Venda\",TB_Operacoes[Corretora],TB_Operacoes[[#This Row],[Corretora]]))<>0,MAX(TB_Operacoes[Registro]*(TB_Operacoes[Corretora]=TB_Operacoes[[#This Row],[Corretora]])*(TB_Operacoes[Ativo]=TB_Operacoes[[#This Row],[Ativo]]))),SUM(SUMIFS(TB_Operacoes[Qtde],TB_Operacoes[Ativo],TB_Operacoes[[#This Row],[Ativo]],TB_Operacoes[Posição (C / V)],\"Compra\",TB_Operacoes[Corretora],TB_Operacoes[[#This Row],[Corretora]])-SUMIFS(TB_Operacoes[Qtde],TB_Operacoes[Ativo],TB_Operacoes[[#This Row],[Ativo]],TB_Operacoes[Posição (C / V)],\"Venda\",TB_Operacoes[Corretora],TB_Operacoes[[#This Row],[Corretora]])),\"-\")","v":-50},-50,{"$f":"IF(TB_Operacoes[[#This Row],[Resultado desejado]]<>\"-\",\"Preço Médio \" & TB_Operacoes[[#This Row],[Ativo]],0)","v":"Preço Médio GOAU4"}]
[null,13,"2021-03-24",null,"Genial Investimentos",null,"ETER3","Compra",100,18.95,{"$f":"TB_Operacoes[[#This Row],[Qtde]]*TB_Operacoes[[#This Row],[Vlr Unit]]","v":1895},{"$f":"IF(AND(SUM(SUMIFS(TB_Operacoes[Qtde],TB_Operacoes[Ativo],TB_Operacoes[[#This Row],[Ativo]],TB_Operacoes[Posição (C / V)],\"Compra\",TB_Operacoes[Corretora],TB_Operacoes[[#This Row],[Corretora]])-SUMIFS(TB_Operacoes[Qtde],TB_Operacoes[Ativo],TB_Operacoes[[#This Row],[Ativo]],TB_Operacoes[Posição (C / V)],\"Venda\",TB_Operacoes[Corretora],TB_Operacoes[[#This Row],[Corretora]]))<>0,MAX(TB_Operacoes[Registro]*(TB_Operacoes[Corretora]=TB_Operacoes[[#This Row],[Corretora]])*(TB_Operacoes[Ativo]=TB_Operacoes[[#This Row],[Ativo]]))),SUM(SUMIFS(TB_Operacoes[Qtde],TB_Operacoes[Ativo],TB_Operacoes[[#This Row],[Ativo]],TB_Operacoes[Posição (C / V)],\"Compra\",TB_Operacoes[Corretora],TB_Operacoes[[#This Row],[Corretora]])-SUMIFS(TB_Operacoes[Qtde],TB_Operacoes[Ativo],TB_Operacoes[[#This Row],[Ativo]],TB_Operacoes[Posição (C / V)],\"Venda\",TB_Operacoes[Corretora],TB_Operacoes[[#This Row],[Corretora]])),\"-\")","v":100},100,{"$f":"IF(TB_Operacoes[[#This Row],[Resultado desejado]]<>\"-\",\"Preço Médio \" & TB_Operacoes[[#This Row],[Ativo]],0)","v":"Preço Médio ETER3"}]
[null,12,"2021-03-22",null,"Genial Investimentos",null,"GOAU4","Venda",200,12.31,{"$f":"TB_Operacoes[[#This Row],[Qtde]]*TB_Operacoes[[#This Row],[Vlr Unit]]","v":2462},{"$f":"IF(AND(SUM(SUMIFS(TB_Operacoes[Qtde],TB_Operacoes[Ativo],TB_Operacoes[[#This Row],[Ativo]],TB_Operacoes[Posição (C / V)],\"Compra\",TB_Operacoes[Corretora],TB_Operacoes[[#This Row],[Corretora]])-SUMIFS(TB_Operacoes[Qtde],TB_Operacoes[Ativo],TB_Operacoes[[#This Row],[Ativo]],TB_Operacoes[Posição (C / V)],\"Venda\",TB_Operacoes[Corretora],TB_Operacoes[[#This Row],[Corretora]]))<>0,MAX(TB_Operacoes[Registro]*(TB_Operacoes[Corretora]=TB_Operacoes[[#This Row],[Corretora]])*(TB_Operacoes[Ativo]=TB_Operacoes[[#This Row],[Ativo]]))),SUM(SUMIFS(TB_Operacoes[Qtde],TB_Operacoes[Ativo],TB_Operacoes[[#This Row],[Ativo]],TB_Operacoes[Posição (C / V)],\"Compra\",TB_Operacoes[Corretora],TB_Operacoes[[#This Row],[Corretora]])-SUMIFS(TB_Operacoes[Qtde],TB_Operacoes[Ativo],TB_Operacoes[[#This Row],[Ativo]],TB_Operacoes[Posição (C / V)],\"Venda\",TB_Operacoes[Corretora],TB_Operacoes[[#This Row],[Corretora]])),\"-\")","v":-50},-50,{"$f":"IF(TB_Operacoes[[#This Row],[Resultado desejado]]<>\"-\",\"Preço Médio \" & TB_Operacoes[[#This Row],[Ativo]],0)","v":"Preço Médio GOAU4"}]
[null,11,"2021-03-18",null,"Modal Mais",null,"ITSA4","Venda",200,10.42,{"$f":"TB_Operacoes[[#This Row],[Qtde]]*TB_Operacoes[[#This Row],[Vlr Unit]]","v":2084},{"$f":"IF(AND(SUM(SUMIFS(TB_Operacoes[Qtde],TB_Operacoes[Ativo],TB_Operacoes[[#This Row],[Ativo]],TB_Operacoes[Posição (C / V)],\"Compra\",TB_Operacoes[Corretora],TB_Operacoes[[#This Row],[Corretora]])-SUMIFS(TB_Operacoes[Qtde],TB_Operacoes[Ativo],TB_Operacoes[[#This Row],[Ativo]],TB_Operacoes[Posição (C / V)],\"Venda\",TB_Operacoes[Corretora],TB_Operacoes[[#This Row],[Corretora]]))<>0,MAX(TB_Operacoes[Registro]*(TB_Operacoes[Corretora]=TB_Operacoes[[#This Row],[Corretora]])*(TB_Operacoes[Ativo]=TB_Operacoes[[#This Row],[Ativo]]))),SUM(SUMIFS(TB_Operacoes[Qtde],TB_Operacoes[Ativo],TB_Operacoes[[#This Row],[Ativo]],TB_Operacoes[Posição (C / V)],\"Compra\",TB_Operacoes[Corretora],TB_Operacoes[[#This Row],[Corretora]])-SUMIFS(TB_Operacoes[Qtde],TB_Operacoes[Ativo],TB_Operacoes[[#This Row],[Ativo]],TB_Operacoes[Posição (C / V)],\"Venda\",TB_Operacoes[Corretora],TB_Operacoes[[#This Row],[Corretora]])),\"-\")","v":"-"},"-",{"$f":"IF(TB_Operacoes[[#This Row],[Resultado desejado]]<>\"-\",\"Preço Médio \" & TB_Operacoes[[#This Row],[Ativo]],0)","v":0}]
[null,10,"2021-03-18",null,"Genial Investimentos",null,"ECOR3","Venda",100,11.58,{"$f":"TB_Operacoes[[#This Row],[Qtde]]*TB_Operacoes[[#This Row],[Vlr Unit]]","v":1158},{"$f":"IF(AND(SUM(SUMIFS(TB_Operacoes[Qtde],TB_Operacoes[Ativo],TB_Operacoes[[#This Row],[Ativo]],TB_Operacoes[Posição (C / V)],\"Compra\",TB_Operacoes[Corretora],TB_Operacoes[[#This Row],[Corretora]])-SUMIFS(TB_Operacoes[Qtde],TB_Operacoes[Ativo],TB_Operacoes[[#This Row],[Ativo]],TB_Operacoes[Posição (C / V)],\"Venda\",TB_Operacoes[Corretora],TB_Operacoes[[#This Row],[Corretora]]))<>0,MAX(TB_Operacoes[Registro]*(TB_Operacoes[Corretora]=TB_Operacoes[[#This Row],[Corretora]])*(TB_Operacoes[Ativo]=TB_Operacoes[[#This Row],[Ativo]]))),SUM(SUMIFS(TB_Operacoes[Qtde],TB_Operacoes[Ativo],TB_Operacoes[[#This Row],[Ativo]],TB_Operacoes[Posição (C / V)],\"Compra\",TB_Operacoes[Corretora],TB_Operacoes[[#This Row],[Corretora]])-SUMIFS(TB_Operacoes[Qtde],TB_Operacoes[Ativo],TB_Operacoes[[#This Row],[Ativo]],TB_Operacoes[Posição (C / V)],\"Venda\",TB_Operacoes[Corretora],TB_Operacoes[[#This Row],[Corretora]])),\"-\")","v":"-"},"-",{"$f":"IF(TB_Operacoes[[#This Row],[Resultado desejado]]<>\"-\",\"Preço Médio \" & TB_Operacoes[[#This Row],[Ativo]],0)","v":0}]
[null,9,"2021-03-17",null,"Genial Investimentos",null,"ENEV3","Compra",100,16.62,{"$f":"TB_Operacoes[[#This Row],[Qtde]]*TB_Operacoes[[#This Row],[Vlr Unit]]","v":1662},{"$f":"IF(AND(SUM(SUMIFS(TB_Operacoes[Qtde],TB_Operacoes[Ativo],TB_Operacoes[[#This Row],[Ativo]],TB_Operacoes[Posição (C / V)],\"Compra\",TB_Operacoes[Corretora],TB_Operacoes[[#This Row],[Corretora]])-SUMIFS(TB_Operacoes[Qtde],TB_Operacoes[Ativo],TB_Operacoes[[#This Row],[Ativo]],TB_Operacoes[Posição (C / V)],\"Venda\",TB_Operacoes[Corretora],TB_Operacoes[[#This Row],[Corretora]]))<>0,MAX(TB_Operacoes[Registro]*(TB_Operacoes[Corretora]=TB_Operacoes[[#This Row],[Corretora]])*(TB_Operacoes[Ativo]=TB_Operacoes[[#This Row],[Ativo]]))),SUM(SUMIFS(TB_Operacoes[Qtde],TB_Operacoes[Ativo],TB_Operacoes[[#This Row],[Ativo]],TB_Operacoes[Posição (C / V)],\"Compra\",TB_Operacoes[Corretora],TB_Operacoes[[#This Row],[Corretora]])-SUMIFS(TB_Operacoes[Qtde],TB_Operacoes[Ativo],TB_Operacoes[[#This Row],[Ativo]],TB_Operacoes[Posição (C / V)],\"Venda\",TB_Operacoes[Corretora],TB_Operacoes[[#This Row],[Corretora]])),\"-\")","v":100},100,{"$f":"IF(TB_Operacoes[[#This Row],[Resultado desejado]]<>\"-\",\"Preço Médio \" & TB_Operacoes[[#This Row],[Ativo]],0)","v":"Preço Médio ENEV3"}]
[null,8,"2021-03-16",null,"Genial Investimentos",null,"ECOR3","Compra",100,11.37,{"$f":"TB_Operacoes[[#This Row],[Qtde]]*TB_Operacoes[[#This Row],[Vlr Unit]]","v":1137},{"$f":"IF(AND(SUM(SUMIFS(TB_Operacoes[Qtde],TB_Operacoes[Ativo],TB_Operacoes[[#This Row],[Ativo]],TB_Operacoes[Posição (C / V)],\"Compra\",TB_Operacoes[Corretora],TB_Operacoes[[#This Row],[Corretora]])-SUMIFS(TB_Operacoes[Qtde],TB_Operacoes[Ativo],TB_Operacoes[[#This Row],[Ativo]],TB_Operacoes[Posição (C / V)],\"Venda\",TB_Operacoes[Corretora],TB_Operacoes[[#This Row],[Corretora]]))<>0,MAX(TB_Operacoes[Registro]*(TB_Operacoes[Corretora]=TB_Operacoes[[#This Row],[Corretora]])*(TB_Operacoes[Ativo]=TB_Operacoes[[#This Row],[Ativo]]))),SUM(SUMIFS(TB_Operacoes[Qtde],TB_Operacoes[Ativo],TB_Operacoes[[#This Row],[Ativo]],TB_Operacoes[Posição (C / V)],\"Compra\",TB_Operacoes[Corretora],TB_Operacoes[[#This Row],[Corretora]])-SUMIFS(TB_Operacoes[Qtde],TB_Operacoes[Ativo],TB_Operacoes[[#This Row],[Ativo]],TB_Operacoes[Posição (C / V)],\"Venda\",TB_Operacoes[Corretora],TB_Operacoes[[#This Row],[Corretora]])),\"-\")","v":"-"},"-",{"$f":"IF(TB_Operacoes[[#This Row],[Resultado desejado]]<>\"-\",\"Preço Médio \" & TB_Operacoes[[#This Row],[Ativo]],0)","v":0}]
[null,7,"2021-03-15",null,"Modal Mais",null,"ITSA4","Compra",200,10.210000000000001,{"$f":"TB_Operacoes[[#This Row],[Qtde]]*TB_Operacoes[[#This Row],[Vlr Unit]]","v":2042.0000000000002},{"$f":"IF(AND(SUM(SUMIFS(TB_Operacoes[Qtde],TB_Operacoes[Ativo],TB_Operacoes[[#This Row],[Ativo]],TB_Operacoes[Posição (C / V)],\"Compra\",TB_Operacoes[Corretora],TB_Operacoes[[#This Row],[Corretora]])-SUMIFS(TB_Operacoes[Qtde],TB_Operacoes[Ativo],TB_Operacoes[[#This Row],[Ativo]],TB_Operacoes[Posição (C / V)],\"Venda\",TB_Operacoes[Corretora],TB_Operacoes[[#This Row],[Corretora]]))<>0,MAX(TB_Operacoes[Registro]*(TB_Operacoes[Corretora]=TB_Operacoes[[#This Row],[Corretora]])*(TB_Operacoes[Ativo]=TB_Operacoes[[#This Row],[Ativo]]))),SUM(SUMIFS(TB_Operacoes[Qtde],TB_Operacoes[Ativo],TB_Operacoes[[#This Row],[Ativo]],TB_Operacoes[Posição (C / V)],\"Compra\",TB_Operacoes[Corretora],TB_Operacoes[[#This Row],[Corretora]])-SUMIFS(TB_Operacoes[Qtde],TB_Operacoes[Ativo],TB_Operacoes[[#This Row],[Ativo]],TB_Operacoes[Posição (C / V)],\"Venda\",TB_Operacoes[Corretora],TB_Operacoes[[#This Row],[Corretora]])),\"-\")","v":"-"},"-",{"$f":"IF(TB_Operacoes[[#This Row],[Resultado desejado]]<>\"-\",\"Preço Médio \" & TB_Operacoes[[#This Row],[Ativo]],0)","v":0}]
[null,6,"2021-03-11",null,"Genial Investimentos",null,"GOAU4","Venda",100,12.49,{"$f":"TB_Operacoes[[#This Row],[Qtde]]*TB_Operacoes[[#This Row],[Vlr Unit]]","v":1249},{"$f":"IF(AND(SUM(SUMIFS(TB_Operacoes[Qtde],TB_Operacoes[Ativo],TB_Operacoes[[#This Row],[Ativo]],TB_Operacoes[Posição (C / V)],\"Compra\",TB_Operacoes[Corretora],TB_Operacoes[[#This Row],[Corretora]])-SUMIFS(TB_Operacoes[Qtde],TB_Operacoes[Ativo],TB_Operacoes[[#This Row],[Ativo]],TB_Operacoes[Posição (C / V)],\"Venda\",TB_Operacoes[Corretora],TB_Operacoes[[#This Row],[Corretora]]))<>0,MAX(TB_Operacoes[Registro]*(TB_Operacoes[Corretora]=TB_Operacoes[[#This Row],[Corretora]])*(TB_Operacoes[Ativo]=TB_Operacoes[[#This Row],[Ativo]]))),SUM(SUMIFS(TB_Operacoes[Qtde],TB_Operacoes[Ativo],TB_Operacoes[[#This Row],[Ativo]],TB_Operacoes[Posição (C / V)],\"Compra\",TB_Operacoes[Corretora],TB_Operacoes[[#This Row],[Corretora]])-SUMIFS(TB_Operacoes[Qtde],TB_Operacoes[Ativo],TB_Operacoes[[#This Row],[Ativo]],TB_Operacoes[Posição (C / V)],\"Venda\",TB_Operacoes[Corretora],TB_Operacoes[[#This Row],[Corretora]])),\"-\")","v":-50},"-",{"$f":"IF(TB_Operacoes[[#This Row],[Resultado desejado]]<>\"-\",\"Preço Médio \" & TB_Operacoes[[#This Row],[Ativo]],0)","v":0}]
[null,5,"2021-03-10",null,"Modal Mais",null,"ENBR3","Venda",100,18.57,{"$f":"TB_Operacoes[[#This Row],[Qtde]]*TB_Operacoes[[#This Row],[Vlr Unit]]","v":1857},{"$f":"IF(AND(SUM(SUMIFS(TB_Operacoes[Qtde],TB_Operacoes[Ativo],TB_Operacoes[[#This Row],[Ativo]],TB_Operacoes[Posição (C / V)],\"Compra\",TB_Operacoes[Corretora],TB_Operacoes[[#This Row],[Corretora]])-SUMIFS(TB_Operacoes[Qtde],TB_Operacoes[Ativo],TB_Operacoes[[#This Row],[Ativo]],TB_Operacoes[Posição (C / V)],\"Venda\",TB_Operacoes[Corretora],TB_Operacoes[[#This Row],[Corretora]]))<>0,MAX(TB_Operacoes[Registro]*(TB_Operacoes[Corretora]=TB_Operacoes[[#This Row],[Corretora]])*(TB_Operacoes[Ativo]=TB_Operacoes[[#This Row],[Ativo]]))),SUM(SUMIFS(TB_Operacoes[Qtde],TB_Operacoes[Ativo],TB_Operacoes[[#This Row],[Ativo]],TB_Operacoes[Posição (C / V)],\"Compra\",TB_Operacoes[Corretora],TB_Operacoes[[#This Row],[Corretora]])-SUMIFS(TB_Operacoes[Qtde],TB_Operacoes[Ativo],TB_Operacoes[[#This Row],[Ativo]],TB_Operacoes[Posição (C / V)],\"Venda\",TB_Operacoes[Corretora],TB_Operacoes[[#This Row],[Corretora]])),\"-\")","v":-100},-100,{"$f":"IF(TB_Operacoes[[#This Row],[Resultado desejado]]<>\"-\",\"Preço Médio \" & TB_Operacoes[[#This Row],[Ativo]],0)","v":"Preço Médio ENBR3"}]
[null,4,"2021-03-09",null,"Genial Investimentos",null,"GOAU4","Compra",100,11.92,{"$f":"TB_Operacoes[[#This Row],[Qtde]]*TB_Operacoes[[#This Row],[Vlr Unit]]","v":1192},{"$f":"IF(AND(SUM(SUMIFS(TB_Operacoes[Qtde],TB_Operacoes[Ativo],TB_Operacoes[[#This Row],[Ativo]],TB_Operacoes[Posição (C / V)],\"Compra\",TB_Operacoes[Corretora],TB_Operacoes[[#This Row],[Corretora]])-SUMIFS(TB_Operacoes[Qtde],TB_Operacoes[Ativo],TB_Operacoes[[#This Row],[Ativo]],TB_Operacoes[Posição (C / V)],\"Venda\",TB_Operacoes[Corretora],TB_Operacoes[[#This Row],[Corretora]]))<>0,MAX(TB_Operacoes[Registro]*(TB_Operacoes[Corretora]=TB_Operacoes[[#This Row],[Corretora]])*(TB_Operacoes[Ativo]=TB_Operacoes[[#This Row],[Ativo]]))),SUM(SUMIFS(TB_Operacoes[Qtde],TB_Operacoes[Ativo],TB_Operacoes[[#This Row],[Ativo]],TB_Operacoes[Posição (C / V)],\"Compra\",TB_Operacoes[Corretora],TB_Operacoes[[#This Row],[Corretora]])-SUMIFS(TB_Operacoes[Qtde],TB_Operacoes[Ativo],TB_Operacoes[[#This Row],[Ativo]],TB_Operacoes[Posição (C / V)],\"Venda\",TB_Operacoes[Corretora],TB_Operacoes[[#This Row],[Corretora]])),\"-\")","v":-50},"-",{"$f":"IF(TB_Operacoes[[#This Row],[Resultado desejado]]<>\"-\",\"Preço Médio \" & TB_Operacoes[[#This Row],[Ativo]],0)","v":0}]
[null,3,"2021-03-08",null,"Genial Investimentos",null,"MRFG3","Venda",100,15.09,{"$f":"TB_Operacoes[[#This Row],[Qtde]]*TB_Operacoes[[#This Row],[Vlr Unit]]","v":1509},{"$f":"IF(AND(SUM(SUMIFS(TB_Operacoes[Qtde],TB_Operacoes[Ativo],TB_Operacoes[[#This Row],[Ativo]],TB_Operacoes[Posição (C / V)],\"Compra\",TB_Operacoes[Corretora],TB_Operacoes[[#This Row],[Corretora]])-SUMIFS(TB_Operacoes[Qtde],TB_Operacoes[Ativo],TB_Operacoes[[#This Row],[Ativo]],TB_Operacoes[Posição (C / V)],\"Venda\",TB_Operacoes[Corretora],TB_Operacoes[[#This Row],[Corretora]]))<>0,MAX(TB_Operacoes[Registro]*(TB_Operacoes[Corretora]=TB_Operacoes[[#This Row],[Corretora]])*(TB_Operacoes[Ativo]=TB_Operacoes[[#This Row],[Ativo]]))),SUM(SUMIFS(TB_Operacoes[Qtde],TB_Operacoes[Ativo],TB_Operacoes[[#This Row],[Ativo]],TB_Operacoes[Posição (C / V)],\"Compra\",TB_Operacoes[Corretora],TB_Operacoes[[#This Row],[Corretora]])-SUMIFS(TB_Operacoes[Qtde],TB_Operacoes[Ativo],TB_Operacoes[[#This Row],[Ativo]],TB_Operacoes[Posição (C / V)],\"Venda\",TB_Operacoes[Corretora],TB_Operacoes[[#This Row],[Corretora]])),\"-\")","v":"-"},"-",{"$f":"IF(TB_Operacoes[[#This Row],[Resultado desejado]]<>\"-\",\"Preço Médio \" & TB_Operacoes[[#This Row],[Ativo]],0)","v":0}]
[null,2,"2021-03-04",null,"Genial Investimentos",null,"MRFG3","Compra",100,14.67,{"$f":"TB_Operacoes[[#This Row],[Qtde]]*TB_Operacoes[[#This Row],[Vlr Unit]]","v":1467},{"$f":"IF(AND(SUM(SUMIFS(TB_Operacoes[Qtde],TB_Operacoes[Ativo],TB_Operacoes[[#This Row],[Ativo]],TB_Operacoes[Posição (C / V)],\"Compra\",TB_Operacoes[Corretora],TB_Operacoes[[#This Row],[Corretora]])-SUMIFS(TB_Operacoes[Qtde],TB_Operacoes[Ativo],TB_Operacoes[[#This Row],[Ativo]],TB_Operacoes[Posição (C / V)],\"Venda\",TB_Operacoes[Corretora],TB_Operacoes[[#This Row],[Corretora]]))<>0,MAX(TB_Operacoes[Registro]*(TB_Operacoes[Corretora]=TB_Operacoes[[#This Row],[Corretora]])*(TB_Operacoes[Ativo]=TB_Operacoes[[#This Row],[Ativo]]))),SUM(SUMIFS(TB_Operacoes[Qtde],TB_Operacoes[Ativo],TB_Operacoes[[#This Row],[Ativo]],TB_Operacoes[Posição (C / V)],\"Compra\",TB_Operacoes[Corretora],TB_Operacoes[[#This Row],[Corretora]])-SUMIFS(TB_Operacoes[Qtde],TB_Operacoes[Ativo],TB_Operacoes[[#This Row],[Ativo]],TB_Operacoes[Posição (C / V)],\"Venda\",TB_Operacoes[Corretora],TB_Operacoes[[#This Row],[Corretora]])),\"-\")","v":"-"},"-",{"$f":"IF(TB_Operacoes[[#This Row],[Resultado desejado]]<>\"-\",\"Preço Médio \" & TB_Operacoes[[#This Row],[Ativo]],0)","v":0}]
[null,1,"2021-02-25",null,"Genial Investimentos",null,"ENBR3","Compra",100,18.350000000000001,{"$f":"TB_Operacoes[[#This Row],[Qtde]]*TB_Operacoes[[#This Row],[Vlr Unit]]","v":1835.0000000000002},{"$f":"IF(AND(SUM(SUMIFS(TB_Operacoes[Qtde],TB_Operacoes[Ativo],TB_Operacoes[[#This Row],[Ativo]],TB_Operacoes[Posição (C / V)],\"Compra\",TB_Operacoes[Corretora],TB_Operacoes[[#This Row],[Corretora]])-SUMIFS(TB_Operacoes[Qtde],TB_Operacoes[Ativo],TB_Operacoes[[#This Row],[Ativo]],TB_Operacoes[Posição (C / V)],\"Venda\",TB_Operacoes[Corretora],TB_Operacoes[[#This Row],[Corretora]]))<>0,MAX(TB_Operacoes[Registro]*(TB_Operacoes[Corretora]=TB_Operacoes[[#This Row],[Corretora]])*(TB_Operacoes[Ativo]=TB_Operacoes[[#This Row],[Ativo]]))),SUM(SUMIFS(TB_Operacoes[Qtde],TB_Operacoes[Ativo],TB_Operacoes[[#This Row],[Ativo]],TB_Operacoes[Posição (C / V)],\"Compra\",TB_Operacoes[Corretora],TB_Operacoes[[#This Row],[Corretora]])-SUMIFS(TB_Operacoes[Qtde],TB_Operacoes[Ativo],TB_Operacoes[[#This Row],[Ativo]],TB_Operacoes[Posição (C / V)],\"Venda\",TB_Operacoes[Corretora],TB_Operacoes[[#This Row],[Corretora]])),\"-\")","v":100},100,{"$f":"IF(TB_Operacoes[[#This Row],[Resultado desejado]]<>\"-\",\"Preço Médio \" & TB_Operacoes[[#This Row],[Ativo]],0)","v":"Preço Médio ENBR3"}]